lending/lending_fUSD_20240112
["ID","MTS","AMOUNT","RATE_DAILY","PERIOD"]
[311337141,1705063953415,-939.88462871,0.00028893,2]
[311337142,1705063953425,-2401.08429076,0.00028893,5]
[311337143,1705063953435,-2142.04374583,0.00028893,2]
[311337144,1705063953444,-505.54218404,0.00028893,2]
[311337145,1705063953454,-763.89697746,0.00028893,2]
[311337146,1705063953463,-1105.23826026,0.00028893,2]
[311337147,1705063953473,-522.97103838,0.00028893,2]
[311337148,1705063953483,-1354.30516931,0.00028893,2]
[311337149,1705063953492,-13400.606,0.00028893,2]
[311337150,1705063953502,-4452.1855,0.00028893,2]
[311337151,1705063953511,-1439.03950464,0.00028893,2]
[311337152,1705063953521,-5995.4669029,0.00028893,2]
[311337153,1705063953531,-1368.98189186,0.00028893,2]
[311337154,1705063953540,-772.20650252,0.00028893,2]
[311337155,1705063953551,-705.30490154,0.00028893,2]
[311337156,1705063953561,-1064.58887234,0.00028893,2]
[311337157,1705063953571,-660.23272369,0.00028893,2]
[311337158,1705063953581,-966.44684019,0.00028893,2]
[311337159,1705063953591,-917.60160258,0.00028893,2]
[311337160,1705063953600,-608.48872343,0.00028893,2]
[311337161,1705063953610,-1227.23176051,0.00028893,2]
[311337162,1705063953619,-660.70413641,0.00028893,2]
[311337163,1705063953629,-873.51211607,0.00028893,2]
[311337164,1705063953638,-3542.41759779,0.00028893,2]
[311337165,1705063953647,-2031.00775602,0.00028893,2]
[311337166,1705063953656,-568.04182773,0.00028893,2]
[311337167,1705063953666,-1009.02827169,0.00028893,2]
[311337168,1705063953676,-615.54533,0.00028893,2]
[311337169,1705063953685,-804.83125785,0.00028893,2]
[311337170,1705063953694,-468.74721716,0.00028893,2]
[311337171,1705063953703,-751.43333235,0.00028893,2]
[311337172,1705063953713,-798.01825505,0.00028893,2]
[311337173,1705063953722,-681.61,0.00028893,2]
[311337174,1705063953731,-1371.49518354,0.00028893,2]
[311337175,1705063953741,-550.95190111,0.00028893,2]
[311337176,1705063953750,-568.45,0.00028893,2]
[311337177,1705063953760,-1041.06239398,0.00028893,2]
[311337178,1705063953769,-686.48454158,0.00028893,2]
[311337179,1705063953778,-3981.9117787,0.00028893,2]
[311337180,1705063953787,-584.57228367,0.00028893,2]
[311337181,1705063953797,-837.7192831,0.00028893,2]
[311337182,1705063953807,-610.6056151,0.00028893,2]
[311337183,1705063953817,-766.03407283,0.00028893,2]
[311337184,1705063953826,-1259.47285074,0.00028893,2]
[311337185,1705063953892,-621.97528586,0.00028893,2]
[311337186,1705063953901,-195.686576,0.00028893,2]
[311337187,1705063953911,-645.85443326,0.00028893,2]
[311337188,1705063953920,-2752.67,0.00028893,2]
[311337189,1705063953929,-528.56290708,0.00028893,2]
[311337190,1705063953939,-1378.59310818,0.00028893,2]
[311337191,1705063953948,-843.91614711,0.00028893,2]
[311337192,1705063953957,-367.68604507,0.00028893,2]
[311337193,1705063953966,-923.07392319,0.00028893,2]
[311337194,1705063953975,-712.83644578,0.00028893,2]
[311337195,1705063953984,-521.82506648,0.00028893,2]
[311337196,1705063953993,-624.9407138,0.00028893,2]
[311337197,1705063954002,-625.49936577,0.00028893,2]
[311337198,1705063954011,-1634.21071879,0.00028893,2]
[311337199,1705063954020,-710.13475882,0.00028893,2]
[311337200,1705063954029,-6331.58467787,0.00028893,2]
[311337201,1705063954038,-835.29273886,0.00028893,2]
[311337202,1705063954047,-1018.92039121,0.00028893,2]
[311337203,1705063954056,-995.91152904,0.00028893,2]
[311337204,1705063954066,-6343.27112341,0.00028893,2]
[311337205,1705063954075,-652.86,0.00028893,2]
[311337206,1705063954085,-1312.6574522,0.00028893,2]
[311337207,1705063954093,-1257.857561,0.00028893,2]
[311337208,1705063954103,-1936.45155851,0.00028893,2]
[311337209,1705063954113,-511.96882946,0.00028893,2]
[311337210,1705063954122,-538.86707882,0.00028893,2]
[311337211,1705063954132,-530.24291395,0.00028893,2]
[311337212,1705063954141,-906.15306505,0.00028893,2]
[311337213,1705063954150,-1331.03851944,0.00028893,2]
[311337214,1705063954160,-584.42733375,0.00028893,2]
[311337215,1705063954169,-1834.8991815,0.00028893,2]
[311337216,1705063954178,-1320.77,0.00028893,2]
[311337217,1705063954187,-539.09666738,0.00028893,2]
[311337218,1705063954198,-2275.15752351,0.00028893,2]
[311337219,1705063954211,-3572.28061515,0.00028893,2]
[311337220,1705063954221,-558.49562512,0.00028893,2]
[311337221,1705063954231,-1688.56318317,0.00028893,2]
[311337222,1705063954241,-1346.38533665,0.00028893,2]
[311337223,1705063954250,-736.76057836,0.00028893,2]
[311337224,1705063954260,-1004.42763076,0.00028893,2]
[311337225,1705063954269,-969.13622254,0.00028893,2]
[311337226,1705063954279,-598.76588015,0.00028893,2]
[311337227,1705063954290,-929.44941504,0.00028893,2]
[311337228,1705063954302,-1026.10066304,0.00028893,2]
[311337229,1705063954313,-1187.66,0.00028893,2]
[311337230,1705063954323,-913.45897278,0.00028893,2]
[311337231,1705063954332,-937.36543488,0.00028893,2]
[311337232,1705063954343,-722.02403885,0.00028893,2]
[311337233,1705063954354,-507.64603759,0.00028893,2]
[311337234,1705063954364,-753.43690349,0.00028893,2]
[311337235,1705063954375,-650.0,0.00029,3]
[311337236,1705063954385,-176.49,0.00029011,2]
[311337237,1705063954395,-4223.97131854,0.000291,2]
[311337238,1705063954405,-1122.93123842,0.000291,2]
[311337239,1705063954414,-945.66655406,0.000291,2]
[311337240,1705063954424,-620.65195691,0.000291,2]
[311337241,1705063954434,-703.0,0.000291,2]
[311337242,1705063954444,-1331.21,0.000291,2]
[311337243,1705063954454,-3318.67209276,0.000291,2]
[311337244,1705063954464,-500.0,0.00029244,2]
[311337245,1705063954474,-10242.74170757,0.00029324,2]
[311337246,1705063954484,-24471.37066021,0.000294,2]
[311337247,1705063954493,-24471.37066019,0.000294,2]
[311337248,1705063954503,-24471.37066019,0.000294,2]
[311337249,1705063954513,-24471.37066019,0.000294,2]
[311337250,1705063954523,-24471.37066019,0.000294,2]
[311337251,1705063954533,-24471.37066019,0.000294,2]
[311337252,1705063954543,-24471.37066019,0.000294,2]
[311337253,1705063954554,-24471.37066019,0.000294,2]
[311337254,1705063954564,-24471.37066019,0.000294,2]
[311337255,1705063954574,-24471.37066019,0.000294,2]
[311337256,1705063954584,-24471.37066019,0.000294,2]
[311337257,1705063954594,-24471.37066019,0.000294,2]
[311337258,1705063954604,-24471.37066019,0.000294,2]
[311337259,1705063954613,-19105.65798421,0.000295,2]
[311337260,1705063954624,-500.0,0.00029561,2]
[311337261,1705063954634,-200.0,0.00029561,2]
[311337262,1705063954643,-4569.8908539,0.00029579,2]
[311337263,1705063954652,-542.9,0.00029606,2]
[311337264,1705063954661,-42958.96,0.000297,2]
[311337265,1705063954671,-32907.11,0.000297,2]
[311337266,1705063954680,-10819.98,0.000297,2]
[311337267,1705063954690,-23662.67,0.000297,2]
[311337268,1705063954699,-28916.46,0.000297,2]
[311337269,1705063954708,-5451.38,0.000297,2]
[311337270,1705063954718,-209050.08,0.000297,2]
[311337271,1705063954728,-47189.48,0.000297,2]
[311337272,1705063954737,-60786.93,0.000297,2]
[311337273,1705063954747,-205.74,0.000297,2]
[311337274,1705063954757,-500.0,0.00029717,2]
[311337275,1705063954767,-1180.89788928,0.0002977,2]
[311337276,1705063954776,-1811.1160802,0.0002978,2]
[311337277,1705063954785,-164.73,0.00029798,2]
[311337278,1705063954794,-164.73,0.00029798,2]
[311337279,1705063954805,-162.21361845,0.00029798,2]
[311337280,1705063954814,-195.7410408,0.000298,2]
[311337281,1705063954823,-384131.29902887,0.000298,2]
[311337282,1705063954833,-13577.62482855,0.000298,2]
[311337283,1705063954842,-3537.25277781,0.000298,2]
[311337284,1705063954851,-700.0,0.0002987,2]
[311337285,1705063954861,-3000.0,0.000299,2]
[311337286,1705063954871,-534.95,0.00029933,2]
[311337287,1705063954880,-2717.03664086,0.0002996,2]
[311337288,1705063954890,-581.31,0.0002997,2]
[311337289,1705063954899,-9139.8993866,0.00029979,2]
[311337290,1705063954909,-1289.2991255,0.00029979,2]
[311337291,1705063954918,-51708.6748688,0.00029979,2]
[311337292,1705063954927,-150.0,0.00029999,2]
[311337293,1705063954937,-100000.0,0.0003,2]
[311337294,1705063954946,-192.58534306,0.0003,2]
[311337295,1705063954955,-581.79448282,0.0003,2]
[311337296,1705063954964,-72817.06069245,0.0003,4]
[311337297,1705063954973,-327.22655027,0.0003,4]
[311337298,1705063954982,-1573.31294625,0.0003,2]
[311337299,1705063954991,-8826.98630773,0.0003,4]
[311337300,1705063955000,-155.0,0.0003,2]
[311337301,1705063955009,-114418.7575351,0.0003,4]
[311337302,1705063955265,-65071.95997381,0.0003,4]
[311337303,1705063955277,-128962.09323473,0.0003,4]
[311337304,1705063955287,-1144.28682432,0.0003,3]
[311337305,1705063955297,-9625.15929167,0.0003,2]
[311337306,1705063955307,-352.52665312,0.0003,2]
[311337307,1705063955318,-188.80511033,0.0003,30]
[311337308,1705063955329,-4495.33403735,0.0003,30]
[311337309,1705063955339,-2673.21433858,0.0003,7]
[311337310,1705063955349,-312.37895848,0.0003,30]
[311337311,1705063955359,-234025.62044293,0.0003,4]
[311337312,1705063956108,-500.0,0.00022591,2]
[311337313,1705063956118,-500.0,0.00022591,2]
[311337314,1705063956128,-500.0,0.00022591,2]
[311337315,1705063956138,-500.0,0.00022591,2]
[311337316,1705063956148,-500.0,0.00022591,2]
[311337317,1705063956158,-518.43,0.00022591,2]
[311337318,1705063956168,-500.0,0.00022591,2]
[311337319,1705063956177,-28.15515287,0.00022592,2]
[311337320,1705063956340,-500.0,0.00022591,2]
[311337321,1705063956350,-471.84484713,0.00022592,2]
[311337322,1705063956360,-500.0,0.00022592,2]
[311337323,1705063956370,-500.0,0.00022592,2]
[311337324,1705063956380,-393.05536649,0.00022592,2]
[311337325,1705063956392,-106.94463351,0.00022592,2]
[311337326,1705063956403,-553.43,0.00022865,2]
[311337327,1705063956413,-500.0,0.00022865,2]
[311337328,1705063956423,-263.62536649,0.00022865,2]
[311337329,1705063956435,-236.37463351,0.00022865,2]
[311337330,1705063956445,-500.0,0.00022865,2]
[311337331,1705063956454,-500.0,0.00022865,2]
[311337332,1705063956464,-500.0,0.00022865,2]
[311337333,1705063956473,-233.93,0.00022866,2]
[311337334,1705063956483,-528.14,0.00022866,2]
[311337335,1705063956493,-500.0,0.00023139,2]
[311337336,1705063956504,-500.0,0.00023139,2]
[311337337,1705063956513,-500.0,0.00023139,2]
[311337338,1705063956523,-255.26,0.00023139,2]
[311337339,1705063956533,-500.0,0.00023139,2]
[311337340,1705063956544,-500.0,0.00023413,2]
[311337341,1705063956556,-562.08,0.00023413,2]
[311337342,1705063956566,-410.85,0.00023413,2]
[311337343,1705063956577,-500.0,0.00023413,2]
[311337344,1705063956588,-430.94202553,0.00023687,2]
[311337345,1705063956598,-500.0,0.00023687,2]
[311337346,1705063956609,-408.69,0.00023961,2]
[311337347,1705063956620,-500.0,0.00026976,2]
[311337348,1705063956631,-500.0,0.0002725,2]
[311337349,1705063956641,-500.0,0.00027524,2]
[311337350,1705063956652,-500.0,0.00027798,2]
[311337351,1705063956662,-269.96279535,0.00028072,2]
[311337352,1705063956672,-1579.67454561,0.000294,2]
[311337353,1705063956685,-1768.45637484,0.000294,2]
[311337354,1705063956697,-1899.8979998,0.000294,2]
[311337355,1705063956714,-348.30517451,0.00022591,2]
[311337356,1705063956874,-151.69482549,0.00022591,2]
[311337357,1705063956883,-4524.0251745,0.000294,2]
[311337358,1705063956894,-524.32057752,0.000294,2]
[311337359,1705063956907,-2241.55249203,0.000294,2]
[311337360,1705063956918,-533.96922861,0.000294,2]
[311337361,1705063956930,-11399.47426728,0.000294,2]
[311337362,1705063956940,-4346.0174384,0.0003,4]
[311337363,1705063956961,-5937.92292126,0.0003,4]
[311337364,1705063956973,-1411.92481084,0.0003,4]
[311337365,1705063956985,-5734.37864632,0.0003,4]
[311337366,1705063957262,-1904.61902454,0.0003,4]
[311337367,1705063957274,-302.30058979,0.0003,4]
[311337368,1705063957286,-5294.90000002,0.0003,4]
[311337369,1705063957538,-500.0,0.00022591,2]
[311337370,1705063957549,-271.68815153,0.00022591,2]
[311337371,1705063957564,-228.31184847,0.00022591,2]
[311337372,1705063957574,-500.0,0.00022591,2]
[311337373,1705063957585,-500.0,0.00022591,2]
[311337374,1705063957594,-500.0,0.00022592,2]
[311337375,1705063957604,-500.0,0.00022865,2]
[311337376,1705063957614,-500.0,0.00022865,2]
[311337377,1705063957624,-512.62,0.00022865,2]
[311337378,1705063957634,-500.0,0.00022865,2]
[311337379,1705063957643,-499.28,0.00022866,2]
[311337380,1705063957653,-500.0,0.00023139,2]
[311337381,1705063957663,-182.7,0.00023139,2]
[311337382,1705063957673,-500.0,0.00023139,2]
[311337383,1705063957683,-509.26,0.00023413,2]
[311337384,1705063957693,-8797.82815203,0.000294,2]
[311337385,1705063957706,-15673.54250816,0.000294,2]
[311337386,1705063957715,-24076.45749194,0.0003,4]
[311337387,1705063957728,-837.29649,0.0003,4]
[311337388,1705063958737,237.61567005,0.00021,2]
[311337389,1705063959833,509.91155974,0.00020105,2]
[311337391,1705063960987,187.50033149,0.00021753,2]
[311337392,1705063961171,160.13,0.00022109,2]
[311337393,1705063962168,3153.12376656,0.00021,2]
[311337394,1705063962444,9698.96540812,9e-05,2]
[311337395,1705063963390,1525.13989912,0.00018,2]
[311337396,1705063963948,623.94062215,0.0001,2]
[311337397,1705063964064,359.02,0.00020296,2]
[311337398,1705063964100,617.84170091,0.00022,2]
[311337399,1705063964138,1427.40182184,0.0001,2]
[311337400,1705063964336,1642.40385696,0.0002,2]
[311337401,1705063965693,2680.3972,0.00022492,2]
[311337402,1705063966402,419.14328655,6.94e-05,2]
[311337403,1705063966869,385.685,0.00022492,2]
[311337404,1705063966989,601.21638283,0.000155,2]
[311337405,1705063967670,602.64843143,0.0002,2]
[311337406,1705063969025,3675.2,0.00021752,2]
[311337407,1705063970010,1964.64,0.00021694,2]
[311337409,1705063983162,24031.3378595,0.000225,2]
[311337411,1705063993571,195.68616624,0.00022491,2]
[311337413,1705063997230,250.0,0.00022492,2]
[311337414,1705063998811,150.0,0.00022,2]
[311337415,1705064002231,202.07,0.0002224,2]
[311337416,1705064003712,5000.0,0.00022492,2]
[311337418,1705064036860,3100.0,0.0002,2]
[311337420,1705064056848,1000.0,0.00022,3]
[311337423,1705064065415,984.47133732,0.00022,2]
[311337425,1705064115552,250.0,0.00022062,2]
[311337426,1705064130210,893.01,0.00022099,2]
[311337427,1705064135675,250.0,0.00022492,2]
[311337428,1705064148318,3496.3148,0.00022492,2]
[311337430,1705064258673,250.0,0.00022492,2]
[311337431,1705064260703,156.05,0.00022151,2]
[311337433,1705064274192,337.90785946,0.00022492,2]
[311337435,1705064309199,305.94,0.00019982,2]
[311337436,1705064309761,305.94,0.00022246,2]
[311337437,1705064315814,160.12,0.00021905,2]
[311337438,1705064402794,158.23283784,0.00022491,2]
[311337439,1705064403354,250.0,0.00022491,2]
[311337441,1705064418976,1410.6635,0.00022491,2]
[311337442,1705064419131,351.71,0.00021899,2]
[311337443,1705064451125,447.16,0.00021855,2]
[311337444,1705064468673,166.79,0.00021853,2]
[311337445,1705064513006,1000.0,0.00021911,2]
[311337446,1705064513373,277.84755236,0.00022363,2]
[311337447,1705064538414,3028.4694,0.00022491,2]
[311337448,1705064541516,250.0,0.00022491,2]
[311337449,1705064552514,8353.654265,0.00022445,2]
[311337450,1705064587335,4942.2144,0.00022491,2]
[311337451,1705064611853,391.37233248,0.00022489,2]
[311337452,1705064612691,285.59,0.00021715,2]
[311337453,1705064619787,2168.70853878,0.00022491,2]
[311337454,1705064628184,540.96276331,0.00022491,2]
[311337455,1705064634119,6186.8539749,0.00022491,2]
[311337456,1705064638202,500.0,0.0002259,30]
[311337457,1705064638792,500.0,0.00022864,30]
[311337458,1705064639070,500.0,0.00023138,30]
[311337459,1705064641286,636.49433248,0.00022491,2]
[311337461,1705064688206,250.0,0.00022491,2]
[311337462,1705064691657,159.95,0.00021898,2]
[311337463,1705064709408,621.5395,0.00022488,2]
[311337464,1705064749491,162.5,0.00021689,2]
[311337465,1705064749886,162.5,0.00022123,2]
[311337466,1705064750140,1445.80569252,0.00022491,2]
[311337467,1705064761799,156.05,0.00021818,2]
[311337468,1705064769402,4124.5693166,0.00022491,2]
[311337469,1705064778196,424.32955498,0.00022491,2]
[311337470,1705064806849,633.6342,0.00022488,2]
[311337471,1705064809663,360.64184222,0.00022491,2]
[311337472,1705064811318,250.0,0.00022491,2]
[311337473,1705064814320,200.0,0.00022379,2]
[311337474,1705064846262,185.21540496,0.00022489,2]
[311337475,1705064851082,-150.0,0.00022547,2]
[311337476,1705064851102,-155.42094327,0.00022547,2]
[311337477,1705064877442,331.36,0.00019785,2]
[311337478,1705064877792,331.36,0.00022049,2]
[311337479,1705064880407,963.87046168,0.00022491,2]
[311337480,1705064907464,2749.71287772,0.00022491,2]
[311337481,1705064916173,282.88636998,0.00022491,2]
[311337482,1705064934825,460.54,0.00021666,2]
[311337483,1705064953813,250.0,0.0002249,2]
[311337486,1705064989555,240.4278948,0.0002249,2]
[311337489,1705065012047,1007.13462474,0.0002249,2]
[311337505,1705065031728,-255.4812832,0.00022544,2]
[311337506,1705065031741,-268.64070121,0.00022544,2]
[311337507,1705065031751,-155.0,0.00022544,2]
[311337508,1705065031760,-300.0,0.00022544,2]
[311337509,1705065031769,-730.0,0.00022545,2]
[311337510,1705065031779,-5113.03355012,0.00022548,2]
[311337511,1705065031789,-263.08356569,0.00022548,2]
[311337512,1705065031801,-150.0,0.00022555,2]
[311337513,1705065031811,-3595.20521315,0.00022556,2]
[311337514,1705065031820,-162.5,0.00022557,2]
[311337515,1705065031831,-158.23283784,0.00022559,2]
[311337516,1705065031841,-16009.64465248,0.00022578,2]
[311337517,1705065031851,-5076.05363768,0.00022579,2]
[311337518,1705065031861,-155.39986867,0.00022586,2]
[311337519,1705065031874,-5195.4627863,0.00022587,2]
[311337520,1705065031885,-500.0,0.00022587,2]
[311337521,1705065031895,-1095.03,0.00022587,2]
[311337522,1705065031905,-2336.53,0.00022587,5]
[311337523,1705065031915,-660.44,0.00022587,2]
[311337524,1705065031924,-936.55,0.00022587,2]
[311337525,1705065031933,-2039.19318687,0.00022587,2]
[311337526,1705065031954,-1150.0,0.00022587,2]
[311337527,1705065031966,-1183.42344449,0.00022587,2]
[311337528,1705065032078,-610.46336864,0.00022587,2]
[311337529,1705065032087,-500.0,0.00022587,2]
[311337530,1705065032096,-461.17663136,0.00022587,2]
[311337531,1705065032108,-6374.13336864,0.00022587,2]
[311337532,1705065032117,-1968.89,0.00022587,2]
[311337533,1705065032126,-5449.65538986,0.00022587,2]
[311337534,1705065032137,-640.06759,0.00022587,2]
[311337535,1705065032154,-864.68441708,0.00022587,2]
[311337541,1705065037502,-1120.6283,0.00022587,2]
[311337542,1705065037513,-6246.16430306,0.00022587,2]
[311337543,1705065037523,-549.3,0.00022587,2]
[311337544,1705065037532,-619.15,0.00022587,2]
[311337545,1705065037541,-1403.82,0.00022587,2]
[311337546,1705065037551,-722.98,0.00022587,2]
[311337547,1705065037560,-500.0,0.00022587,2]
[311337548,1705065037570,-607.61,0.00022587,2]
[311337549,1705065037579,-510.07,0.00022587,2]
[311337550,1705065037589,-749.86,0.00022587,2]
[311337551,1705065037598,-3048.94,0.00022587,2]
[311337552,1705065037608,-500.0,0.00022587,2]
[311337553,1705065037617,-500.0,0.00022587,2]
[311337554,1705065037626,-500.0,0.00022587,2]
[311337555,1705065037635,-1294.29,0.00022587,2]
[311337556,1705065037644,-984.37,0.00022587,2]
[311337557,1705065037653,-675.45,0.00022587,2]
[311337558,1705065037664,-500.0,0.00022587,2]
[311337559,1705065037674,-1709.12,0.00022587,2]
[311337560,1705065037683,-500.0,0.00022587,2]
[311337561,1705065037693,-937.07,0.00022587,2]
[311337562,1705065037703,-2370.13,0.00022587,2]
[311337563,1705065037712,-500.0,0.00022587,2]
[311337564,1705065037722,-500.0,0.00022587,2]
[311337565,1705065037731,-793.03,0.00022587,2]
[311337566,1705065037740,-786.71,0.00022587,2]
[311337567,1705065037750,-1074.66,0.00022587,2]
[311337568,1705065037760,-2000.06,0.00022587,2]
[311337569,1705065037770,-3928.94,0.00022587,2]
[311337570,1705065037780,-1033.75,0.00022587,2]
[311337571,1705065037790,-874.55,0.00022587,2]
[311337572,1705065037802,-1304.48,0.00022587,2]
[311337573,1705065037811,-500.0,0.00022587,2]
[311337574,1705065037820,-500.0,0.00022587,2]
[311337575,1705065037830,-6963.0,0.00022587,2]
[311337576,1705065037840,-500.0,0.00022587,2]
[311337577,1705065037849,-1048.12,0.00022587,2]
[311337578,1705065037859,-500.0,0.00022587,2]
[311337579,1705065037869,-500.0,0.00022587,2]
[311337580,1705065037878,-500.0,0.00022587,2]
[311337581,1705065037888,-1205.23,0.00022587,2]
[311337582,1705065037898,-500.0,0.00022587,2]
[311337583,1705065037907,-500.0,0.00022587,2]
[311337584,1705065037918,-736.05,0.00022587,2]
[311337585,1705065037928,-500.0,0.00022587,2]
[311337586,1705065037937,-9796.43,0.00022587,2]
[311337587,1705065037945,-2056.42,0.00022587,2]
[311337588,1705065037954,-500.0,0.00022587,2]
[311337590,1705065037963,-600.05,0.00022587,2]
[311337592,1705065037972,-1076.15,0.00022587,2]
[311337594,1705065037980,-500.0,0.00022587,2]
[311337596,1705065037990,-1891.13,0.00022587,2]
[311337598,1705065038000,-500.0,0.00022587,2]
[311337600,1705065038009,-2556.24,0.00022587,2]
[311337602,1705065038018,-750.14,0.00022587,2]
[311337604,1705065038027,-500.0,0.00022587,2]
[311337606,1705065038036,-2721.6,0.00022587,2]
[311337608,1705065038045,-500.0,0.00022587,2]
[311337610,1705065038054,-500.0,0.00022587,2]
[311337612,1705065038063,-884.19,0.00022587,2]
[311337614,1705065038072,-2018.21,0.00022587,2]
[311337616,1705065038081,-2134.94,0.00022587,2]
[311337618,1705065038090,-1493.07,0.00022587,2]
[311337620,1705065038099,-1084.3,0.00022587,2]
[311337622,1705065038108,-612.02,0.00022587,2]
[311337624,1705065038117,-500.0,0.00022587,2]
[311337625,1705065038125,-5673.19,0.00022587,2]
[311337627,1705065038134,-500.0,0.00022587,2]
[311337629,1705065038144,-500.0,0.00022587,2]
[311337632,1705065038153,-500.0,0.00022587,2]
[311337634,1705065038164,-1028.9,0.00022587,2]
[311337636,1705065038174,-2233.34,0.00022587,2]
[311337638,1705065038183,-710.28,0.00022587,2]
[311337639,1705065038192,-728.45,0.00022588,2]
[311337642,1705065038202,-1055782.0574451,0.00022588,2]
[311337644,1705065038211,-162.21361845,0.00022589,2]
[311337646,1705065038220,-155.0,0.00022589,2]
[311337648,1705065038229,-1147.94222427,0.00022589,2]
[311337650,1705065038238,-562.8,0.00022589,2]
[311337652,1705065038247,-158.01260679,0.00022589,2]
[311337654,1705065038256,-4480.63733448,0.00022589,2]
[311337656,1705065038265,-376.29059879,0.00022589,2]
[311337658,1705065038274,-16512.6203327,0.00022589,2]
[311337660,1705065038283,-155.0,0.00022589,2]
[311337662,1705065038292,-219.95090379,0.00022589,2]
[311337664,1705065038302,-50045.90432222,0.00022589,2]
[311337666,1705065038311,-241230.41312976,0.00022589,2]
[311337668,1705065038320,-3000.26578585,0.00022589,2]
[311337670,1705065038329,-269.56124623,0.00022589,2]
[311337672,1705065038339,-2303.07507198,0.0002259,2]
[311337674,1705065038348,-500.0,0.0002259,2]
[311337676,1705065038357,-500.0,0.0002259,2]
[311337678,1705065038366,-500.0,0.0002259,2]
[311337680,1705065038375,-500.0,0.0002259,2]
[311337682,1705065038384,-500.0,0.0002259,2]
[311337684,1705065038393,-225.96912939,0.0002259,2]
[311337686,1705065038402,-500.0,0.0002259,2]
[311337688,1705065038411,-500.0,0.0002259,2]
[311337690,1705065038422,-500.0,0.0002259,2]
[311337692,1705065038431,-500.0,0.0002259,2]
[311337694,1705065038439,-500.0,0.0002259,2]
[311337696,1705065038449,-500.0,0.0002259,2]
[311337698,1705065038458,-500.0,0.0002259,2]
[311337700,1705065038468,-500.0,0.0002259,2]
[311337702,1705065038477,-500.0,0.0002259,2]
[311337704,1705065038487,-500.0,0.0002259,2]
[311337706,1705065038496,-207.11343108,0.0002259,2]
[311337708,1705065038506,-500.0,0.0002259,2]
[311337710,1705065038515,-500.0,0.0002259,2]
[311337712,1705065038524,-500.0,0.0002259,2]
[311337714,1705065038535,-517.90019932,0.0002259,2]
[311337716,1705065038545,-500.0,0.0002259,2]
[311337718,1705065038555,-500.0,0.0002259,2]
[311337720,1705065038564,-500.0,0.0002259,2]
[311337722,1705065038574,-500.0,0.0002259,2]
[311337724,1705065038583,-500.0,0.0002259,2]
[311337726,1705065038592,-500.0,0.0002259,2]
[311337728,1705065038601,-500.0,0.0002259,2]
[311337730,1705065038610,-500.0,0.0002259,2]
[311337732,1705065038619,-500.0,0.0002259,2]
[311337734,1705065038628,-500.0,0.0002259,2]
[311337736,1705065038637,-500.0,0.0002259,2]
[311337738,1705065038646,-500.0,0.0002259,2]
[311337740,1705065038655,-500.0,0.0002259,2]
[311337742,1705065038665,-500.0,0.0002259,2]
[311337744,1705065038674,-500.0,0.0002259,2]
[311337746,1705065038684,-500.0,0.0002259,2]
[311337748,1705065038693,-500.0,0.0002259,2]
[311337750,1705065038702,-500.0,0.0002259,2]
[311337752,1705065038711,-500.0,0.0002259,2]
[311337754,1705065038720,-157.2933837,0.0002259,2]
[311337756,1705065038729,-500.0,0.0002259,2]
[311337758,1705065038738,-500.0,0.0002259,2]
[311337760,1705065038747,-500.0,0.0002259,2]
[311337762,1705065038756,-500.0,0.0002259,2]
[311337764,1705065038766,-500.0,0.0002259,2]
[311337766,1705065038775,-500.0,0.0002259,2]
[311337768,1705065038784,-500.0,0.0002259,2]